{"text_format":"1","workbook":"xlsx","n_sheets":4,"sheets":["MENU","Photos et plaquettes","Palmarès Bas-Intyamon","Palmarès complet"],"not_rendered":{"charts":0,"images":7,"macros":1,"external_links":0,"defined_names":0,"comments":0,"pivot_tables":0},"unopened":[],"bounds":{"document_bytes":16777216,"sheet_cells":100000,"rows_first":2000,"rows_last":500,"rows_between":2000,"halvings":0,"cell_chars":16384,"cell_head_chars":4096},"cells_cut":0,"cells_raw":0,"read":"whole","date_system":"1900"}

{"sheet":"MENU","index":0,"n_rows":0,"n_cols":0,"rows_kept":0,"cut":false,"hidden":false,"merged":[[2,1,2,6]]}

{"sheet":"Photos et plaquettes","index":1,"n_rows":43,"n_cols":13,"rows_kept":43,"cut":false,"hidden":false,"merged":[[11,9,11,12],[4,9,4,12],[4,5,4,8],[3,9,3,12],[3,1,3,4],[3,5,3,8],[11,1,11,4],[42,9,42,12],[41,6,41,8],[42,6,42,8],[35,1,43,5],[37,9,37,12],[36,9,36,12],[35,9,35,12],[38,9,38,12],[36,6,36,8],[37,6,37,8],[41,9,41,12],[15,9,15,12],[13,1,13,4],[1,1,1,12],[10,1,10,4],[5,1,5,4],[6,1,6,4],[6,9,6,12],[7,1,7,4],[7,5,7,9],[7,10,7,12],[8,1,8,4],[8,5,8,8],[9,1,9,4],[9,5,9,8],[9,9,9,12],[4,1,4,4],[28,1,28,4],[21,1,21,12],[22,1,22,12],[25,7,26,12],[26,1,26,4],[27,1,27,4],[23,1,23,12],[18,1,18,4],[18,9,18,12],[12,9,12,12],[2,9,2,12],[12,1,12,4],[2,1,2,4],[16,1,16,4],[17,1,17,4],[17,9,17,12],[16,5,16,8],[17,5,17,8],[13,5,13,9],[14,1,14,4],[14,5,14,8],[15,1,15,4],[15,5,15,8]]}
[]
[null,"Prix de revient final : environ Fr. 800.-"]
[null,"2 plaquettes pour Fr. 40.-",null,null,null,null,null,null,null,"2 plaquettes pour Fr. 60.-"]
[null,"Edgar Eggen",null,null,null,"plaquette dorée"]
[null,"1er sur 11 en 2022 avec 656 points",null,null,null,"1 fois : 70 mm x  20 mm",null,null,null,"1. sur 00 en 2024 avec 000 points"]
[null,"Georges Pharisa"]
[null,"2è sur 11 en 2022 avec 651 points",null,null,null,null,null,null,null,"2. sur 00  en 2024 avec 000 points"]
[]
[null,"Marcel Blanc",null,null,null,"plaquette dorée"]
[null,"1. sur 11  en 2023 avec 677 points",null,null,null,"70 mm x  20 mm",null,null,null,"1. sur 00  en 2025 avec 000 points"]
[null,"André Pharisa"]
[null,"2. sur 11  en 2023 avec 585 points",null,null,null,null,null,null,null,"2. sur 00 en 2025 avec 000 points"]
[null,"2 plaquettes pour Fr. 60.-",null,null,null,null,null,null,null,"2 plaquettes pour Fr. 60.-"]
[]
[]
[null,"1. sur 00 en 2026 avec 000 points",null,null,null,null,null,null,null,"1. sur 00 en 2027 avec 000 points"]
[null,null,null,null,null,"plaquette argentée"]
[null,"2. sur 00 en 2026 avec 000 points",null,null,null,"70 mm x  20 mm",null,null,null,"2. sur 00  en 2027 avec 000 points"]
[null,"2 plaquettes pour Fr. 60.-",null,null,null,null,null,null,null,"2 plaquettes pour Fr. 60.-"]
[]
[]
[null,"Fourniture et gravure des plaquettes annuelles, par Mister Minit  (Migros de Bulle)"]
[null,"Fr. 30.- par pièce pour les plaquettes ci-dessus"]
[null,"(à la charge du donateur ou de sa succession)"]
[]
[null,null,null,null,null,null,null,"Tireurs vétérans de Bas-Intyamon"]
[null,"Cristal de roche du St-Gothard"]
[null,"sur miroir de cristal et base en frêne",null,null,null,null,null,"Tir fédéral\nen campagne","Giron  de \nMontsalvens","33 % passe\nvétérans (T,C.)","concours\nannuel (V)","concours\nindividuel  (V)","MAXIMUM\nPOSSIBLE"]
[null,"offert par Jean Pharisa, 1939, Bulle",null,null,null,null,null,72,150,165,160,200,747]
[]
[]
[]
[]
[]
[]
[null,"Plaquettes finales\nà la charge du donateur\nou de sa succession"]
[null,null,null,null,null,null,"100 x 20 mm ",null,null,"Remise définitive en 2029 pour la meilleure moyenne"]
[null,null,null,null,null,null,"dorée",null,null,"des six ans à ……….   ……., avec 0000 points"]
[]
[]
[]
[null,null,null,null,null,null,"100 x 20 mm ",null,null,"Remise pour un an en 2028 pour la meilleure moyenne"]
[null,null,null,null,null,null," argentée",null,null,"des six ans à ……….   ……., avec 0000 points"]

{"sheet":"Palmarès Bas-Intyamon","index":2,"n_rows":51,"n_cols":13,"rows_kept":51,"cut":false,"hidden":false,"merged":[[34,1,34,2],[34,5,34,6],[33,5,33,6],[33,3,33,4],[34,3,34,4],[37,1,37,4],[35,3,35,4],[35,5,35,6],[35,1,35,2],[35,7,35,8],[35,11,35,12],[35,9,35,10],[30,1,30,12],[29,1,29,12],[34,11,34,12],[33,11,33,12],[33,9,33,10],[34,9,34,10],[31,1,31,2],[32,1,32,2],[32,7,32,8],[31,3,31,4],[32,3,32,4],[34,7,34,8],[33,1,33,2],[1,1,1,12],[33,7,33,8],[14,1,14,5],[31,11,31,12],[32,11,32,12],[31,7,31,8],[31,9,31,10],[32,9,32,10],[31,5,31,6],[32,5,32,6],[12,1,12,12],[13,1,13,12],[11,7,11,9]]}
[]
[null,"Challenge \"tireurs vétérans de Bas-Intyamon\"  offert par Jean Pharisa, 1939, à Bulle"]
[]
[null,1,"5 tirs pris en compte   (voir ci-dessous). En cas d'égalité, le résultat au TFC départagera."]
[null,2,"Le tireur classé au 2è rang détiendra le challenge à partir de la soirée des résultats jusqu'à l'assemblée de printemps, soit pour 4 mois."]
[null,3,"Le tireur classé au 1er rang détiendra le challenge à partir de ce moment et jusqu'à la prochaine soirée des résultats, soit pour 8 mois."]
[null,4,"Le challenge est mis en compétition durant 6 ans  (de 2022 à 2027)"]
[null,5,"En 2028, il sera remis pour une année au tireur classé au 2è rang sur la moyenne des 6 ans"]
[null,6,"En 2029, il sera remis définitivement au tireur classé au 1er rang sur la moyenne des 6 ans"]
[]
[]
[null,null,null,null,null,null,null,"à faire\n pour 2024"]
[null,"Tous les résultats concernant ce challenge sont disponibles sous :"]
[null,"https://www.estavannens.com/resultats_divers.html"]
[null,"Classement 2024",null,null,null,null,"Handicap\npour\ncarabines","Tir fédéral\nen\ncampagne","33 % passe\nvétérans\n(OW 2023)","Concours\ncantonal\ndes vétérans","Concours\nindividuel\nvétérans","Giron\nde\nMontsalvens","TOTAL"]
[null,null,null,null,null,null,-30,72,165,160,200,150,747]
[]
[null,1,"Blanc","Marcel","Estavannens",1956,null,null,null,null,null,null,{"$f":"SUM(G18:L18)","v":0}]
[null,2,"Currat","Henri","Grandvillard",1963,null,null,null,null,null,null,0]
[null,3,"Eggen","Edgar","Villars-s-Mont",1958,null,null,null,null,null,null,0]
[null,4,"Geinoz","Raymond","Enney",1959,null,null,null,null,null,null,0]
[null,5,"Grandjean","Roland","Grandvillard",1941,null,null,null,null,null,null,0]
[null,6,"Jaquet","Gérald","Estavannens",1945,null,null,null,null,null,null,0]
[null,7,"Jaquet","Raphaël","Estavannens",1949,null,null,null,null,null,null,0]
[null,8,"Pharisa","André","Grandvillard",1945,null,null,null,null,null,null,0]
[null,10,"Pharisa","Emile","Estavannens",1943,null,null,null,null,null,null,0]
[null,9,"Pharisa","Georges","Grandvillard",1950,-30,null,null,null,null,null,-30]
[null,11,"Pharisa","Jean  ","Bulle",1939,null,null,null,null,null,null,0]
[null,12]
[null,"Meilleure performance (meilleur rang) = "]
[]
[null,2022,null,2023,null,2024,null,2025,null,2026,null,2027]
[null,"1er - Edgar Eggen",null,"1er - Marcel Blanc"]
[null,"656 points",null,"677 points"]
[null,"2è - Georges Pharisa",null,"2è - André Pharisa"]
[null,"651 points",null,"585 points"]
[]
[null,"Situation actuelle",null,null,null,null,2022,2023,2024,2025,2026,2027,"TOTAL"]
[]
[null,1,"Blanc","Marcel","Estavannens","17,07,1956",627,677,null,null,null,null,{"$f":"SUM(G40:L40)","v":1304}]
[null,2,"Eggen","Edgar","Villars-s-Mont","08,10,1958",656,512,null,null,null,null,1168]
[null,3,"Pharisa","André","Grandvillard","08,03,1945",575,585,null,null,null,null,1160]
[null,4,"Pharisa","Georges","Grandvillard","22,08,1950",651,468,null,null,null,null,1119]
[null,5,"Geinoz","Raymond","Enney","15,12,1959",447,431,null,null,null,null,878]
[null,6,"Pharisa","Jean  ","Bulle","07,01,1939",536,325,null,null,null,null,861]
[null,7,"Pharisa","Emile","Estavannens","28,03,1943",295,450,null,null,null,null,745]
[null,8,"Currat","Henri","Grandvillard","01,01,1963","pas concouru",509,null,null,null,null,509]
[null,9,"Jaquet","Raphaël","Estavannens","20,06,1949",196,55,null,null,null,null,251]
[null,10,"Grandjean","Roland","Grandvillard","16,03,1941",148,56,null,null,null,null,204]
[null,11,"Jaquet","Gérald","Estavannens","30,03,1945",55,56,null,null,null,null,111]
[null,12]

{"sheet":"Palmarès complet","index":3,"n_rows":264,"n_cols":13,"rows_kept":264,"cut":false,"hidden":false,"merged":[[1,1,3,12],[5,1,5,5],[42,1,42,5],[60,1,60,4],[59,6,59,12],[20,1,20,12],[62,1,62,5],[81,1,81,5],[98,1,98,4],[23,1,23,5],[38,1,38,12],[57,1,57,12],[119,1,119,5],[135,1,138,12],[77,1,77,12],[96,1,96,12],[116,1,116,12],[101,1,101,5],[98,6,98,12],[157,10,157,12],[157,1,157,3],[140,10,140,12],[140,4,140,6],[157,4,157,6],[140,1,141,3],[160,10,160,12],[177,1,177,3],[177,10,177,12],[160,4,160,6],[176,4,176,6],[177,4,177,6],[160,1,161,3],[182,10,182,12],[199,1,199,3],[199,10,199,12],[182,1,183,3],[182,4,182,6],[198,4,198,6],[199,4,199,6],[203,10,203,12],[220,1,220,3],[220,10,220,12],[203,1,204,3],[203,4,203,6],[219,4,219,6],[220,4,220,6],[225,10,225,12],[242,1,242,3],[242,10,242,12],[225,1,226,3],[225,4,225,6],[241,4,241,6],[242,4,242,6],[246,10,246,12],[263,1,263,3],[263,10,263,12],[246,1,247,3],[246,4,246,6],[262,4,262,6],[263,4,263,6]]}
[]
[null,"Challenge  \"vétérans de Bas-Intyamon\" offert par  Jean Pharisa"]
[]
[]
[]
[null,"Classement  2022",null,null,null,null,"Handicap\npour carabines\net standards","Tir fédéral\nen\ncampagne","33 % passe\nvétérans\n(URI)","concours\ncantonal\ndes vétérans","concours\nindividuel\nfédéral vétérans","Giron\n de \nMontsalvens","TOTAL"]
[null,null,null,null,null,null,-30,72,165,160,200,150,747]
[null,1,"Eggen","Edgar","Villars-s-Mont",1958,-30,62,151,142,187,144,{"$f":"SUM(G8:L8)","v":656}]
[null,2,"Pharisa","Georges","Grandvillard",1950,-30,61,142,152,186,140,651]
[null,3,"Blanc","Marcel","Estavannens",1956,null,60,117,142,171,137,{"$f":"SUM(G10:L10)","v":627}]
[null,4,"Pharisa","André","Grandvillard",1945,null,58,128,131,143,115,575]
[null,5,"Pharisa","Jean  ","Bulle",1939,null,3,103,130,176,124,536]
[null,6,"Geinoz","Raymond","Enney",1959,null,56,null,128,134,129,447]
[null,7,"Pharisa","Emile","Estavannens",1943,null,null,null,null,166,129,295]
[null,8,"Jaquet","Raphaël","Estavannens",1949,null,56,null,null,null,140,196]
[null,9,"Grandjean","Roland","Grandvillard",1941,null,54,null,94,null,null,148]
[null,10,"Jaquet","Gérald","Estavannens",1945,null,55,null,null,null,null,55]
[null,11,"Yenni","Christian","Grandvillard",1961,-30,62,null,null,null,null,32]
[null,12]
[null,13]
[null,"Meilleure performance (meilleur rang) : Georges Pharisa,  152 pts au concours cantonal.  Il obtient le 4è rang cantonal sur  221 tireurs."]
[]
[]
[null,"Classement  2023",null,null,null,null,"Handicap\npour carabines\net standards","Tir fédéral\nen\ncampagne","33 % passe\nvétérans\n(URI)","concours\ncantonal\ndes vétérans","concours\nindividuel\nfédéral vétérans","Giron\n de \nMontsalvens","TOTAL"]
[null,null,null,null,null,null,-30,72,165,160,200,150,747]
[null,1,"Blanc","Marcel","Estavannens",1956,null,66,142,148,188,133,{"$f":"SUM(G26:L26)","v":677}]
[null,2,"Pharisa","André","Grandvillard",1945,null,57,110,130,165,123,585]
[null,3,"Eggen","Edgar","Villars-s-Mont",1958,null,68,139,null,171,134,{"$f":"SUM(G28:L28)","v":512}]
[null,4,"Currat","Henri","Grandvillard",1963,null,58,137,null,175,139,509]
[null,5,"Pharisa","Georges","Grandvillard",1950,-30,55,145,null,166,132,468]
[null,6,"Pharisa","Emile","Estavannens",1943,null,55,null,132,134,129,450]
[null,7,"Geinoz","Raymond","Enney",1959,null,58,119,null,142,112,431]
[null,8,"Pharisa","Jean  ","Bulle",1939,null,55,null,null,158,112,325]
[null,9,"Grandjean","Roland","Grandvillard",1941,null,56,null,null,null,null,56]
[null,10,"Jaquet","Gérald","Estavannens",1945,null,56,null,null,null,null,56]
[null,11,"Jaquet","Raphaël","Estavannens",1949,null,55,null,null,null,null,55]
[null,12]
[null,13]
[null,"Meilleure performance (meilleur rang) = Marcel Blanc : 188  au concours  individuel.  Il obtient le 2è rang cantonal (à 1 point du 1er) et le 19è rang national ex-aequo "]
[]
[]
[]
[null,"Classement  2024",null,null,null,null,"Handicap\npour carabines\net standards","Tir fédéral\nen\ncampagne","33 % passe\nvétérans\n(URI)","concours\ncantonal\ndes vétérans","concours\nindividuel\nfédéral vétérans","Giron\n de \nMontsalvens","TOTAL"]
[null,null,null,null,null,null,-30,72,165,160,200,150,747]
[null,1,"Blanc","Marcel","Estavannens",1956,null,null,null,null,null,null,{"$f":"SUM(G45:L45)","v":0}]
[null,2,"Currat","Henri","Grandvillard",1963,null,null,null,null,null,null,0]
[null,3,"Eggen","Edgar","Villars-s-Mont",1958,null,null,null,null,null,null,0]
[null,4,"Geinoz","Raymond","Enney",1959,null,null,null,null,null,null,0]
[null,5,"Grandjean","Roland","Grandvillard",1941,null,null,null,null,null,null,0]
[null,6,"Jaquet","Gérald","Estavannens",1945,null,null,null,null,null,null,0]
[null,7,"Jaquet","Raphaël","Estavannens",1949,null,null,null,null,null,null,0]
[null,8,"Pharisa","André","Grandvillard",1945,null,null,null,null,null,null,0]
[null,9,"Pharisa","Emile","Estavannens",1943,null,null,null,null,null,null,0]
[null,10,"Pharisa","Georges","Grandvillard",1950,-30,null,null,null,null,null,-30]
[null,11,"Pharisa","Jean  ","Bulle",1939,null,null,null,null,null,null,0]
[null,12,null,null,null,null,null,null,null,null,null,null,0]
[null,13,null,null,null,null,null,null,null,null,null,null,{"$f":"SUM(G57:K57)","v":0}]
[null,"Meilleure performance (rang) : "]
[]
[]
[]
[]
[null,"Classement  2025",null,null,null,null,"Handicap\npour carabines\net standards","Tir fédéral\nen\ncampagne","33 % passe\nvétérans\n(URI)","concours\ncantonal\ndes vétérans","concours\nindividuel\nfédéral vétérans","Giron\n de \nMontsalvens","TOTAL"]
[null,null,null,null,null,null,-30,72,165,160,200,150,747]
[null,1,"Blanc","Marcel","Estavannens",1956,null,null,null,null,null,null,{"$f":"SUM(G65:L65)","v":0}]
[null,2,"Currat","Henri","Grandvillard",1963,null,null,null,null,null,null,0]
[null,3,"Eggen","Edgar","Villars-s-Mont",1958,null,null,null,null,null,null,0]
[null,4,"Geinoz","Raymond","Enney",1959,null,null,null,null,null,null,0]
[null,5,"Grandjean","Roland","Grandvillard",1941,null,null,null,null,null,null,0]
[null,6,"Jaquet","Gérald","Estavannens",1945,null,null,null,null,null,null,0]
[null,7,"Jaquet","Raphaël","Estavannens",1949,null,null,null,null,null,null,0]
[null,8,"Pharisa","André","Grandvillard",1945,null,null,null,null,null,null,0]
[null,9,"Pharisa","Emile","Estavannens",1943,null,null,null,null,null,null,0]
[null,10,"Pharisa","Georges","Grandvillard",1950,-30,null,null,null,null,null,-30]
[null,11,"Pharisa","Jean  ","Bulle",1939,null,null,null,null,null,null,0]
[null,12,null,null,null,null,null,null,null,null,null,null,0]
[null,13,null,null,null,null,null,null,null,null,null,null,{"$f":"SUM(G77:K77)","v":0}]
[null,"Meilleure performance (rang) : "]
[]
[]
[]
[null,"Classement  2026",null,null,null,null,"Handicap\npour carabines\net standards","Tir fédéral\nen\ncampagne","33 % passe\nvétérans\n(URI)","concours\ncantonal\ndes vétérans","concours\nindividuel\nfédéral vétérans","Giron\n de \nMontsalvens","TOTAL"]
[null,null,null,null,null,null,-30,72,165,160,200,150,747]
[null,1,"Blanc","Marcel","Estavannens",1956,null,null,null,null,null,null,{"$f":"SUM(G84:L84)","v":0}]
[null,2,"Currat","Henri","Grandvillard",1963,null,null,null,null,null,null,0]
[null,3,"Eggen","Edgar","Villars-s-Mont",1958,null,null,null,null,null,null,0]
[null,4,"Geinoz","Raymond","Enney",1959,null,null,null,null,null,null,0]
[null,5,"Grandjean","Roland","Grandvillard",1941,null,null,null,null,null,null,0]
[null,6,"Jaquet","Gérald","Estavannens",1945,null,null,null,null,null,null,0]
[null,7,"Jaquet","Raphaël","Estavannens",1949,null,null,null,null,null,null,0]
[null,8,"Pharisa","André","Grandvillard",1945,null,null,null,null,null,null,0]
[null,9,"Pharisa","Emile","Estavannens",1943,null,null,null,null,null,null,0]
[null,10,"Pharisa","Georges","Grandvillard",1950,-30,null,null,null,null,null,-30]
[null,11,"Pharisa","Jean  ","Bulle",1939,null,null,null,null,null,null,0]
[null,12,null,null,null,null,null,null,null,null,null,null,0]
[null,13,null,null,null,null,null,null,null,null,null,null,{"$f":"SUM(G96:K96)","v":0}]
[null,"Meilleure performance (rang) : "]
[]
[]
[]
[]
[null,"Classement  2027",null,null,null,null,"Handicap\npour carabines\net standards","Tir fédéral\nen\ncampagne","33 % passe\nvétérans\n(URI)","concours\ncantonal\ndes vétérans","concours\nindividuel\nfédéral vétérans","Giron\n de \nMontsalvens","TOTAL"]
[null,null,null,null,null,null,-30,72,165,160,200,150,747]
[null,1,"Blanc","Marcel","Estavannens",1956,null,null,null,null,null,null,{"$f":"SUM(G104:L104)","v":0}]
[null,2,"Currat","Henri","Grandvillard",1963,null,null,null,null,null,null,0]
[null,3,"Eggen","Edgar","Villars-s-Mont",1958,null,null,null,null,null,null,0]
[null,4,"Geinoz","Raymond","Enney",1959,null,null,null,null,null,null,0]
[null,5,"Grandjean","Roland","Grandvillard",1941,null,null,null,null,null,null,0]
[null,6,"Jaquet","Gérald","Estavannens",1945,null,null,null,null,null,null,0]
[null,7,"Jaquet","Raphaël","Estavannens",1949,null,null,null,null,null,null,0]
[null,8,"Pharisa","André","Grandvillard",1945,null,null,null,null,null,null,0]
[null,9,"Pharisa","Emile","Estavannens",1943,null,null,null,null,null,null,0]
[null,10,"Pharisa","Georges","Grandvillard",1950,-30,null,null,null,null,null,-30]
[null,11,"Pharisa","Jean  ","Bulle",1939,null,null,null,null,null,null,0]
[null,12,null,null,null,null,null,null,null,null,null,null,0]
[null,13,null,null,null,null,null,null,null,null,null,null,{"$f":"SUM(G116:K116)","v":0}]
[null,"Meilleure performance (rang) : "]
[]
[]
[null,"Classement  2022  -  2027",null,null,null,null,2022,2023,2024,2025,2026,2027,"TOTAL"]
[]
[600,1,"Blanc","Marcel","Estavannens",1956,627,677,null,null,null,null,{"$f":"SUM(G122:L122)","v":1304}]
[null,2,"Eggen","Edgar","Villars-s-Mont",1958,656,512,null,null,null,null,1168]
[null,3,"Pharisa","André","Grandvillard",1945,575,585,null,null,null,null,1160]
[null,4,"Pharisa","Georges","Grandvillard",1950,651,468,null,null,null,null,1119]
[null,5,"Geinoz","Raymond","Enney",1959,447,431,null,null,null,null,878]
[null,6,"Pharisa","Jean  ","Bulle",1939,536,325,null,null,null,null,861]
[null,7,"Pharisa","Emile","Estavannens",1943,295,450,null,null,null,null,745]
[null,8,"Currat ","Henri","Grandvillard",1963,"pas concouru",509,null,null,null,null,509]
[null,9,"Jaquet","Raphaël","Estavannens",1949,196,"pas concouru",null,null,null,null,196]
[null,10,"Grandjean","Roland","Grandvillard",1941,148,"pas concouru",null,null,null,null,148]
[null,12,"Jaquet","Gérald","Estavannens",1945,55,"pas concouru",null,null,null,null,55]
[null,11,null,null,null,null,null,null,null,null,null,null,0]
[null,13,null,null,null,null,null,null,null,null,null,null,0]
[]
[null,"CHALLENGE  VETERANS  OFFERT  PAR  JEAN  PHARISA"]
[]
[]
[]
[]
[null,2022,null,null,"Concours annuel cantonal  (AFTV)",null,null,null,null,null,"Concours individuel fédéral  (ASTV)"]
[null,null,null,null,"Passe 1","Passe 2","TOTAL",null,null,null,"Passe 1","Passe 2","TOTAL"]
[]
[null,1,"Pharisa","Georges",96,56,152,1,"Eggen","Edgar",null,null,187]
[null,2,"Blanc","Marcel",91,51,142,2,"Pharisa","Georges",null,null,186]
[null,3,"Eggen","Edgar",86,56,142,3,"Pharisa","Jean  ",84,92,176]
[null,4,"Pharisa","André",80,51,131,4,"Blanc","Marcel",86,85,171]
[null,5,"Pharisa","Jean  ",79,51,130,5,"Pharisa","Emile",null,null,166]
[null,6,"Geinoz","Raymond",82,47,128,6,"Pharisa","André",null,null,143]
[null,7,"Grandjean","Roland",56,38,94,7,"Geinoz","Raymond",null,null,134]
[null,8,"Jaquet","Gérald",null,null,null,8,"Grandjean","Roland"]
[null,9,"Jaquet","Raphaël",null,null,null,9,"Jaquet","Gérald"]
[null,10,"Pharisa","Emile",null,null,null,10,"Jaquet","Raphaël"]
[null,11,"Currat","Henri",null,null,null,11,"Currat","Henri",null,null,176]
[null,12,null,null,null,null,null,12]
[null,13,null,null,null,null,null,13]
[]
[null,"Chercher la page \"Tir annuel 2022\" sous :",null,null,"https://aftv.ch/resultats/",null,null,null,null,null,"A  REMPLIR  PAR  ANDRE  PHARISA"]
[]
[]
[null,2023,null,null,"Concours annuel cantonal  (AFTV)",null,null,null,null,null,"Concours individuel fédéral  (ASTV)"]
[null,null,null,null,"Passe 1","Passe 2","TOTAL",null,null,null,"Passe 1","Passe 2","TOTAL"]
[]
[null,1,"Blanc","Marcel",93,55,148,1,"Blanc","Marcel",96,92,188]
[null,2,"Pharisa","Emile",82,50,132,2,"Currat","Henri",null,null,175]
[null,3,"Pharisa","André",86,44,130,3,"Eggen","Edgar",null,null,171]
[null,4,"Currat","Henri",null,null,null,4,"Pharisa","Georges",null,null,166]
[null,5,"Eggen","Edgar",null,null,null,5,"Pharisa","André",null,null,165]
[null,6,"Geinoz","Raymond",null,null,null,6,"Pharisa","Jean  ",85,73,158]
[null,7,"Grandjean","Roland",null,null,null,7,"Geinoz","Raymond",null,null,142]
[null,8,"Jaquet","Gérald",null,null,null,8,"Pharisa","Emile",null,null,134]
[null,9,"Jaquet","Raphaël",null,null,null,9,"Grandjean","Roland"]
[null,10,"Pharisa","Georges",null,null,null,10,"Jaquet","Gérald"]
[null,11,"Pharisa","Jean  ",null,null,null,11,"Jaquet","Raphaël"]
[null,12,null,null,null,null,null,12]
[null,13,null,null,null,null,null,13]
[]
[null,"Chercher la page \"Tir annuel 2023\" sous :",null,null,"https://aftv.ch/resultats/",null,null,null,null,null,"A  REMPLIR  PAR  ANDRE  PHARISA"]
[]
[]
[]
[]
[null,2024,null,null,"Concours annuel cantonal  (AFTV)",null,null,null,null,null,"Concours individuel fédéral  (ASTV)"]
[null,null,null,null,"Passe 1","Passe 2","TOTAL",null,null,null,"Passe 1","Passe 2","TOTAL"]
[]
[null,1,"Blanc","Marcel",null,null,null,1,"Blanc","Marcel"]
[null,2,"Currat","Henri",null,null,null,2,"Currat","Henri"]
[null,3,"Eggen","Edgar",null,null,null,3,"Eggen","Edgar"]
[null,4,"Geinoz","Raymond",null,null,null,4,"Geinoz","Raymond"]
[null,5,"Grandjean","Roland",null,null,null,5,"Grandjean","Roland"]
[null,6,"Jaquet","Gérald",null,null,null,6,"Jaquet","Gérald"]
[null,7,"Jaquet","Raphaël",null,null,null,7,"Jaquet","Raphaël"]
[null,8,"Pharisa","André",null,null,null,8,"Pharisa","André"]
[null,9,"Pharisa","Emile",null,null,null,9,"Pharisa","Emile"]
[null,10,"Pharisa","Georges",null,null,null,10,"Pharisa","Georges"]
[null,11,"Pharisa","Jean  ",null,null,null,11,"Pharisa","Jean  "]
[null,12,null,null,null,null,null,12]
[null,13,null,null,null,null,null,13]
[]
[null,"Chercher la page \"Tir annuel 2024\" sous :",null,null,"https://aftv.ch/resultats/",null,null,null,null,null,"A  REMPLIR  PAR  ANDRE  PHARISA"]
[]
[]
[]
[null,2025,null,null,"Concours annuel cantonal  (AFTV)",null,null,null,null,null,"Concours individuel fédéral  (ASTV)"]
[null,null,null,null,"Passe 1","Passe 2","TOTAL",null,null,null,"Passe 1","Passe 2","TOTAL"]
[]
[null,1,"Blanc","Marcel",null,null,null,1,"Blanc","Marcel"]
[null,2,"Currat","Henri",null,null,null,2,"Currat","Henri"]
[null,3,"Eggen","Edgar",null,null,null,3,"Eggen","Edgar"]
[null,4,"Geinoz","Raymond",null,null,null,4,"Geinoz","Raymond"]
[null,5,"Grandjean","Roland",null,null,null,5,"Grandjean","Roland"]
[null,6,"Jaquet","Gérald",null,null,null,6,"Jaquet","Gérald"]
[null,7,"Jaquet","Raphaël",null,null,null,7,"Jaquet","Raphaël"]
[null,8,"Pharisa","André",null,null,null,8,"Pharisa","André"]
[null,9,"Pharisa","Emile",null,null,null,9,"Pharisa","Emile"]
[null,10,"Pharisa","Georges",null,null,null,10,"Pharisa","Georges"]
[null,11,"Pharisa","Jean  ",null,null,null,11,"Pharisa","Jean  "]
[null,12,null,null,null,null,null,12]
[null,13,null,null,null,null,null,13]
[]
[null,"Chercher la page \"Tir annuel 2025 sous :",null,null,"https://aftv.ch/resultats/",null,null,null,null,null,"A  REMPLIR  PAR  ANDRE  PHARISA"]
[]
[]
[]
[]
[null,2026,null,null,"Concours annuel cantonal  (AFTV)",null,null,null,null,null,"Concours individuel fédéral  (ASTV)"]
[null,null,null,null,"Passe 1","Passe 2","TOTAL",null,null,null,"Passe 1","Passe 2","TOTAL"]
[]
[null,1,"Blanc","Marcel",null,null,null,1,"Blanc","Marcel"]
[null,2,"Currat","Henri",null,null,null,2,"Currat","Henri"]
[null,3,"Eggen","Edgar",null,null,null,3,"Eggen","Edgar"]
[null,4,"Geinoz","Raymond",null,null,null,4,"Geinoz","Raymond"]
[null,5,"Grandjean","Roland",null,null,null,5,"Grandjean","Roland"]
[null,6,"Jaquet","Gérald",null,null,null,6,"Jaquet","Gérald"]
[null,7,"Jaquet","Raphaël",null,null,null,7,"Jaquet","Raphaël"]
[null,8,"Pharisa","André",null,null,null,8,"Pharisa","André"]
[null,9,"Pharisa","Emile",null,null,null,9,"Pharisa","Emile"]
[null,10,"Pharisa","Georges",null,null,null,10,"Pharisa","Georges"]
[null,11,"Pharisa","Jean  ",null,null,null,11,"Pharisa","Jean  "]
[null,12,null,null,null,null,null,12]
[null,13,null,null,null,null,null,13]
[]
[null,"Chercher la page \"Tir annuel 2026\" sous :",null,null,"https://aftv.ch/resultats/",null,null,null,null,null,"A  REMPLIR  PAR  ANDRE  PHARISA"]
[]
[]
[]
[null,2027,null,null,"Concours annuel cantonal  (AFTV)",null,null,null,null,null,"Concours individuel fédéral  (ASTV)"]
[null,null,null,null,"Passe 1","Passe 2","TOTAL",null,null,null,"Passe 1","Passe 2","TOTAL"]
[]
[null,1,"Blanc","Marcel",null,null,null,1,"Blanc","Marcel"]
[null,2,"Currat","Henri",null,null,null,2,"Currat","Henri"]
[null,3,"Eggen","Edgar",null,null,null,3,"Eggen","Edgar"]
[null,4,"Geinoz","Raymond",null,null,null,4,"Geinoz","Raymond"]
[null,5,"Grandjean","Roland",null,null,null,5,"Grandjean","Roland"]
[null,6,"Jaquet","Gérald",null,null,null,6,"Jaquet","Gérald"]
[null,7,"Jaquet","Raphaël",null,null,null,7,"Jaquet","Raphaël"]
[null,8,"Pharisa","André",null,null,null,8,"Pharisa","André"]
[null,9,"Pharisa","Emile",null,null,null,9,"Pharisa","Emile"]
[null,10,"Pharisa","Georges",null,null,null,10,"Pharisa","Georges"]
[null,11,"Pharisa","Jean  ",null,null,null,11,"Pharisa","Jean  "]
[null,12,null,null,null,null,null,12]
[null,13,null,null,null,null,null,13]
[]
[null,"Chercher la page \"Tir annuel 2027\" sous :",null,null,"https://aftv.ch/resultats/",null,null,null,null,null,"A  REMPLIR  PAR  ANDRE  PHARISA"]